fUSD/lending_fUSD_20250202
["ID","MTS","AMOUNT","RATE_DAILY","PERIOD"]
[351302293,1738510232746,-500.0,0.00010958,2]
[351302294,1738510232756,-150.0,0.00010959,2]
[351302295,1738510232766,-166.66,0.0001098,2]
[351302296,1738510232776,-825.88,0.0001099,2]
[351302297,1738510232786,-420.0,0.00010999,2]
[351302298,1738510232796,-255.0,0.00010999,2]
[351302299,1738510232806,-10019.88,0.00011,2]
[351302300,1738510232816,-150.0,0.00011,2]
[351302301,1738510232825,-500.0,0.00011095,2]
[351302302,1738510232839,-594.56,0.00011095,2]
[351302303,1738510232849,-500.0,0.00011095,2]
[351302304,1738510232859,-500.0,0.00011095,2]
[351302305,1738510232868,-500.0,0.00011095,2]
[351302306,1738510232878,-500.0,0.00011095,2]
[351302307,1738510232888,-500.0,0.00011095,2]
[351302308,1738510232899,-500.0,0.00011095,2]
[351302309,1738510232909,-500.0,0.00011095,2]
[351302310,1738510232920,-2371.11662491,0.00011126,2]
[351302311,1738510232930,-619.73982996,0.00011126,2]
[351302312,1738510232941,-150.0,0.00011151,2]
[351302313,1738510232952,-150.0,0.00011151,2]
[351302314,1738510232963,-303.74,0.00011178,2]
[351302315,1738510232973,-151.78,0.00011178,2]
[351302316,1738510232983,-2371.1166249,0.00011212,2]
[351302317,1738510232993,-619.73982996,0.00011212,2]
[351302318,1738510233003,-80324.38239895,0.00011226,2]
[351302319,1738510233013,-656.84,0.00011226,2]
[351302320,1738510233023,-2048.75,0.00011226,2]
[351302321,1738510233034,-4002.32,0.00011226,2]
[351302322,1738510233044,-111.31274664,0.00011226,2]
[351302325,1738510237868,-500.0,0.00010958,2]
[351302326,1738510237877,-500.0,0.00010958,2]
[351302327,1738510237887,-500.0,0.00010958,2]
[351302328,1738510237896,-500.0,0.00010958,2]
[351302329,1738510237906,-500.0,0.00010958,2]
[351302330,1738510237916,-500.0,0.00010958,2]
[351302331,1738510237925,-1235.23,0.00010958,2]
[351302332,1738510237935,-500.0,0.00011095,2]
[351302333,1738510237944,-500.0,0.00011095,2]
[351302334,1738510237953,-500.0,0.00011095,2]
[351302335,1738510237963,-500.0,0.00011095,2]
[351302336,1738510237973,-500.0,0.00011095,2]
[351302337,1738510237982,-1235.23,0.00011095,2]
[351302338,1738510237992,-1186.59725336,0.00011226,2]
[351302339,1738510238002,-500.0,0.00011226,2]
[351302340,1738510238012,-2559.72,0.00011226,2]
[351302341,1738510238021,-377.134967,0.00011226,2]
[351302342,1738510238031,-153.436238,0.00011226,2]
[351302343,1738510238041,-500.0,0.00011226,2]
[351302344,1738510238051,-500.0,0.00011226,2]
[351302345,1738510238060,-686.09,0.00011226,2]
[351302346,1738510238070,-155.47789,0.00011226,2]
[351302347,1738510238079,-900.73,0.00011226,2]
[351302348,1738510238090,-505.01,0.00011226,2]
[351302349,1738510238100,-2187.32,0.00011226,2]
[351302350,1738510238112,-760.7266824,0.00011226,2]
[351302351,1738510238126,-787.6433176,0.00011226,2]
[351302352,1738510238136,-338.162505,0.00011226,2]
[351302353,1738510238146,-500.0,0.00011226,2]
[351302354,1738510238156,-3106.29,0.00011226,2]
[351302355,1738510238166,-500.0,0.00011226,2]
[351302356,1738510238175,-533.9,0.00011226,2]
[351302358,1738510238186,-1343.07,0.00011226,2]
[351302360,1738510238195,-656.96,0.00011226,2]
[351302362,1738510238206,-2085.51880517,0.00011226,2]
[351302364,1738510238218,-666.96119483,0.00011226,2]
[351302366,1738510238227,-3166.54,0.00011226,2]
[351302368,1738510238237,-850.54,0.00011226,2]
[351302370,1738510238247,-1139.77,0.00011226,2]
[351302372,1738510238256,-500.0,0.00011226,2]
[351302374,1738510238266,-813.34,0.00011226,2]
[351302376,1738510238275,-500.0,0.00011226,2]
[351302378,1738510238285,-3074.31,0.00011226,2]
[351302380,1738510238295,-1750.5,0.00011226,2]
[351302382,1738510238305,-5778.75,0.00011226,2]
[351302384,1738510238314,-1240.25,0.00011226,2]
[351302386,1738510238323,-2997.22,0.00011226,2]
[351302388,1738510238332,-500.0,0.00011226,2]
[351302390,1738510238342,-2332.71,0.00011226,2]
[351302392,1738510238351,-500.0,0.00011226,2]
[351302394,1738510238361,-2707.76,0.00011226,2]
[351302396,1738510238370,-1554.1,0.00011226,2]
[351302398,1738510238381,-1899.66,0.00011226,2]
[351302400,1738510238391,-826.52,0.00011226,2]
[351302402,1738510238401,-2118.05,0.00011226,2]
[351302404,1738510238411,-2439.1,0.00011226,2]
[351302406,1738510238421,-4114.56,0.00011226,2]
[351302408,1738510238431,-3553.22,0.00011226,2]
[351302410,1738510238441,-502.54681751,0.00011226,2]
[351302412,1738510238450,-1319.59,0.00011226,2]
[351302414,1738510238460,-1180.44,0.00011226,2]
[351302416,1738510238470,-4207.68,0.00011226,2]
[351302418,1738510238480,-2413.67,0.00011226,2]
[351302420,1738510238489,-500.0,0.00011226,2]
[351302422,1738510238499,-500.0,0.00011226,2]
[351302424,1738510238509,-3011.47,0.00011226,2]
[351302426,1738510238518,-1542.52,0.00011226,2]
[351302428,1738510238528,-500.0,0.00011226,2]
[351302430,1738510238537,-158.866969,0.00011226,2]
[351302432,1738510238546,-1595.36,0.00011226,2]
[351302434,1738510238556,-1802.49,0.00011226,2]
[351302436,1738510238565,-5486.23,0.00011226,2]
[351302438,1738510238574,-1831.67,0.00011226,2]
[351302440,1738510238586,-500.0,0.00011226,2]
[351302442,1738510238595,-179.527652,0.00011226,2]
[351302443,1738510238604,-1931.66,0.00011226,2]
[351302445,1738510238613,-759.25,0.00011226,2]
[351302447,1738510238623,-6334.14,0.00011226,2]
[351302449,1738510238632,-891.34,0.00011226,2]
[351302451,1738510238641,-3262.14,0.00011226,2]
[351302453,1738510238651,-980.33,0.00011226,2]
[351302455,1738510238660,-225.0,0.00011226,2]
[351302457,1738510238669,-895.17,0.00011226,2]
[351302459,1738510238678,-324.67096717,0.00011227,2]
[351302461,1738510238687,-500.0,0.00011227,2]
[351302463,1738510238697,-588.28,0.00011227,2]
[351302465,1738510238706,-597.94,0.00011227,2]
[351302467,1738510238715,-500.0,0.00011227,2]
[351302469,1738510238724,-500.0,0.00011227,2]
[351302471,1738510238733,-547.06,0.00011227,2]
[351302473,1738510238742,-500.0,0.00011227,2]
[351302475,1738510238751,-500.0,0.00011227,2]
[351302477,1738510238761,-500.0,0.00011227,2]
[351302479,1738510238770,-635.72,0.00011227,2]
[351302481,1738510238779,-500.0,0.00011227,2]
[351302483,1738510238789,-500.0,0.00011227,2]
[351302485,1738510238798,-1011.6,0.00011227,2]
[351302487,1738510238807,-500.0,0.00011227,2]
[351302489,1738510238817,-500.0,0.00011227,2]
[351302491,1738510238826,-500.0,0.00011227,2]
[351302493,1738510238835,-500.0,0.00011227,2]
[351302495,1738510238847,-500.0,0.00011227,2]
[351302497,1738510238856,-500.87996575,0.00011227,2]
[351302499,1738510238865,-500.0,0.00011227,2]
[351302501,1738510238875,-936.42,0.00011227,2]
[351302503,1738510238884,-500.0,0.00011227,2]
[351302505,1738510238893,-1477.09,0.00011227,2]
[351302507,1738510238902,-500.0,0.00011227,2]
[351302509,1738510238911,-500.0,0.00011227,2]
[351302510,1738510238920,-500.0,0.00011227,2]
[351302513,1738510238930,-768.84,0.00011227,2]
[351302514,1738510238940,-500.0,0.00011227,2]
[351302517,1738510238949,-500.0,0.00011227,2]
[351302519,1738510238959,-461.49325523,0.00011227,2]
[351302521,1738510238969,-284.63969785,0.00011227,2]
[351302522,1738510238978,-500.0,0.00011227,2]
[351302524,1738510238988,-500.0,0.00011227,2]
[351302526,1738510238997,-500.0,0.00011227,2]
[351302528,1738510239006,-500.0,0.00011227,2]
[351302530,1738510239015,-501.8429223,0.00011227,2]
[351302532,1738510239025,-505.37879728,0.00011227,2]
[351302534,1738510239034,-500.0,0.00011227,2]
[351302536,1738510239043,-616.28,0.00011227,2]
[351302538,1738510239052,-500.0,0.00011227,2]
[351302540,1738510239061,-503.63,0.00011227,2]
[351302542,1738510239070,-510.5671125,0.00011227,2]
[351302544,1738510239080,-500.0,0.00011227,2]
[351302546,1738510239091,-500.0,0.00011227,2]
[351302549,1738510239101,-500.0,0.00011227,2]
[351302551,1738510239112,-500.0,0.00011227,2]
[351302553,1738510239122,-543.3,0.00011227,2]
[351302555,1738510239131,-500.0,0.00011227,2]
[351302557,1738510239141,-505.15344946,0.00011227,2]
[351302559,1738510239150,-903.25,0.00011227,2]
[351302561,1738510239159,-285.71879121,0.00011227,2]
[351302562,1738510239168,-500.0,0.00011227,2]
[351302564,1738510239177,-500.0,0.00011227,2]
[351302566,1738510239188,-500.0,0.00011227,2]
[351302568,1738510239197,-500.0,0.00011227,2]
[351302570,1738510239206,-500.0,0.00011227,2]
[351302572,1738510239216,-500.0,0.00011227,2]
[351302574,1738510239225,-500.0,0.00011227,2]
[351302576,1738510239234,-845.35,0.00011227,2]
[351302578,1738510239244,-532.63,0.00011227,2]
[351302580,1738510239253,-500.0,0.00011227,2]
[351302582,1738510239262,-982.31,0.00011227,2]
[351302584,1738510239272,-594.28,0.00011227,2]
[351302586,1738510239282,-574.96,0.00011227,2]
[351302588,1738510239291,-500.0,0.00011227,2]
[351302590,1738510239301,-500.0,0.00011227,2]
[351302592,1738510239310,-500.0,0.00011227,2]
[351302594,1738510239319,-500.0,0.00011227,2]
[351302596,1738510239328,-500.0,0.00011227,2]
[351302598,1738510239338,-571.57,0.00011227,2]
[351302600,1738510239347,-500.0,0.00011227,2]
[351302602,1738510239356,-500.0,0.00011227,2]
[351302604,1738510239365,-500.0,0.00011227,2]
[351302606,1738510239374,-819.67,0.00011227,2]
[351302608,1738510239384,-500.0,0.00011227,2]
[351302610,1738510239393,-500.0,0.00011227,2]
[351302612,1738510239403,-661.66,0.00011227,2]
[351302614,1738510239412,-687.53,0.00011227,2]
[351302616,1738510239422,-555.96,0.00011227,2]
[351302618,1738510239431,-500.0,0.00011227,2]
[351302620,1738510239440,-500.0,0.00011227,2]
[351302622,1738510239449,-500.0,0.00011227,2]
[351302624,1738510239459,-500.0,0.00011227,2]
[351302626,1738510239468,-581.42,0.00011227,2]
[351302628,1738510239478,-844.88,0.00011227,2]
[351302630,1738510239487,-500.0,0.00011227,2]
[351302632,1738510239497,-500.0,0.00011227,2]
[351302633,1738510239507,-500.0,0.00011227,2]
[351302635,1738510239516,-500.0,0.00011227,2]
[351302638,1738510239526,-500.0,0.00011227,2]
[351302640,1738510239535,-500.0,0.00011227,2]
[351302642,1738510239545,-500.0,0.00011227,2]
[351302643,1738510239554,-500.0,0.00011227,2]
[351302646,1738510239565,-500.0,0.00011227,2]
[351302648,1738510239574,-500.0,0.00011227,2]
[351302649,1738510239584,-500.0,0.00011227,2]
[351302651,1738510239594,-537.27013789,0.00011227,2]
[351302654,1738510239604,-500.0,0.00011227,2]
[351302656,1738510239613,-500.0,0.00011227,2]
[351302658,1738510239623,-500.0,0.00011227,2]
[351302660,1738510239633,-500.0,0.00011227,2]
[351302662,1738510239646,-501.06606198,0.00011227,2]
[351302664,1738510239656,-666.12,0.00011227,2]
[351302666,1738510239666,-500.0,0.00011227,2]
[351302668,1738510239676,-500.0,0.00011227,2]
[351302670,1738510239686,-500.0,0.00011227,2]
[351302672,1738510239696,-500.0,0.00011227,2]
[351302674,1738510239705,-500.0,0.00011227,2]
[351302676,1738510239715,-502.48836574,0.00011227,2]
[351302678,1738510239724,-500.0,0.00011227,2]
[351302680,1738510239733,-500.0,0.00011227,2]
[351302681,1738510239742,-500.0,0.00011227,2]
[351302684,1738510239752,-500.0,0.00011227,2]
[351302685,1738510239762,-831.26,0.00011227,2]
[351302686,1738510239772,-500.0,0.00011227,2]
[351302687,1738510239782,-500.0,0.00011227,2]
[351302688,1738510239792,-545.92,0.00011227,2]
[351302689,1738510239802,-504.61415279,0.00011227,2]
[351302690,1738510239812,-500.0,0.00011227,2]
[351302691,1738510239822,-694.08,0.00011227,2]
[351302692,1738510239832,-504.70063071,0.00011227,2]
[351302693,1738510239845,-500.0,0.00011227,2]
[351302694,1738510239855,-585.25,0.00011227,2]
[351302695,1738510239865,-635.38,0.00011227,2]
[351302696,1738510239874,-500.0,0.00011227,2]
[351302698,1738510239885,-500.0,0.00011227,2]
[351302701,1738510239895,-500.0,0.00011227,2]
[351302704,1738510239905,-833.18,0.00011227,2]
[351302706,1738510239916,-500.0,0.00011227,2]
[351302708,1738510239926,-500.0,0.00011227,2]
[351302710,1738510239936,-500.0,0.00011227,2]
[351302712,1738510239946,-500.0,0.00011227,2]
[351302714,1738510239956,-628.39,0.00011227,2]
[351302716,1738510239966,-979.96,0.00011227,2]
[351302718,1738510239977,-500.26,0.00011227,2]
[351302720,1738510239988,-909.26,0.00011227,2]
[351302722,1738510239998,-500.0,0.00011227,2]
[351302724,1738510240009,-594.94,0.00011227,2]
[351302726,1738510240020,-500.0,0.00011227,2]
[351302728,1738510240029,-930.71,0.00011227,2]
[351302730,1738510240040,-500.0,0.00011227,2]
[351302732,1738510240050,-500.0,0.00011227,2]
[351302734,1738510240059,-500.0,0.00011227,2]
[351302736,1738510240069,-500.0,0.00011227,2]
[351302738,1738510240078,-608.46,0.00011227,2]
[351302749,1738510240260,-500.0,0.00011227,2]
[351302754,1738510240323,-500.0,0.00011227,2]
[351302756,1738510240333,-500.0,0.00011227,2]
[351302758,1738510240347,-500.0,0.00011227,2]
[351302760,1738510240357,-500.0,0.00011227,2]
[351302762,1738510240367,-1314.91,0.00011227,2]
[351302764,1738510240376,-663.27,0.00011227,2]
[351302766,1738510240385,-500.0,0.00011227,2]
[351302768,1738510240395,-500.0,0.00011227,2]
[351302770,1738510240404,-685.0,0.00011227,2]
[351302772,1738510240414,-748.7,0.00011227,2]
[351302774,1738510240423,-885.91,0.00011227,2]
[351302776,1738510240432,-500.0,0.00011227,2]
[351302778,1738510240441,-500.0,0.00011227,2]
[351302780,1738510240451,-500.0,0.00011227,2]
[351302782,1738510240460,-500.0,0.00011227,2]
[351302784,1738510240469,-798.84,0.00011227,2]
[351302786,1738510240479,-500.0,0.00011227,2]
[351302788,1738510240488,-2076.9,0.00011227,2]
[351302790,1738510240498,-500.0,0.00011227,2]
[351302792,1738510240509,-649.75,0.00011227,2]
[351302794,1738510240518,-856.19,0.00011227,2]
[351302796,1738510240528,-1069.37,0.00011227,2]
[351302797,1738510240537,-2189.05,0.00011227,2]
[351302800,1738510240547,-1210.27,0.00011227,2]
[351302801,1738510240556,-500.0,0.00011227,2]
[351302803,1738510240565,-500.0,0.00011227,2]
[351302804,1738510240575,-1144.75,0.00011227,2]
[351302805,1738510240585,-500.0,0.00011227,2]
[351302806,1738510240598,-1154.02,0.00011227,2]
[351302807,1738510240607,-726.06,0.00011227,2]
[351302808,1738510240617,-500.0,0.00011227,2]
[351302810,1738510240626,-500.0,0.00011227,2]
[351302812,1738510240635,-500.0,0.00011227,2]
[351302814,1738510240645,-1379.33,0.00011227,2]
[351302816,1738510240654,-881.31,0.00011227,2]
[351302818,1738510240663,-500.0,0.00011227,2]
[351302819,1738510240672,-565.48,0.00011227,2]
[351302820,1738510240682,-888.37,0.00011227,2]
[351302821,1738510240691,-777.35,0.00011227,2]
[351302822,1738510240702,-1523.76,0.00011227,2]
[351302823,1738510240711,-502.23052983,0.00011227,2]
[351302824,1738510240721,-1826.69,0.00011227,2]
[351302825,1738510240730,-460.21654168,0.00011227,2]
[351302826,1738510240740,-720.28,0.00011227,2]
[351302827,1738510240749,-503.43,0.00011227,2]
[351302828,1738510240758,-1146.44,0.00011227,2]
[351302829,1738510240768,-500.0,0.00011227,2]
[351302830,1738510240777,-500.0,0.00011227,2]
[351302831,1738510240787,-500.0,0.00011227,2]
[351302832,1738510240796,-618.0,0.00011227,2]
[351302833,1738510240807,-1774.56,0.00011227,2]
[351302834,1738510240816,-500.0,0.00011227,2]
[351302835,1738510240825,-599.85,0.00011227,2]
[351302836,1738510240835,-1649.19,0.00011227,2]
[351302837,1738510240847,-718.66,0.00011227,2]
[351302838,1738510240857,-724.37,0.00011227,2]
[351302839,1738510240866,-1961.58,0.00011227,2]
[351302840,1738510240875,-502.88,0.00011227,2]
[351302841,1738510240885,-500.0,0.00011227,2]
[351302842,1738510240894,-507.56218838,0.00011227,2]
[351302843,1738510240903,-500.0,0.00011227,2]
[351302844,1738510240913,-1387.59,0.00011227,2]
[351302845,1738510240923,-500.0,0.00011227,2]
[351302846,1738510240932,-500.0,0.00011227,2]
[351302847,1738510240941,-1203.75,0.00011227,2]
[351302848,1738510240952,-500.0,0.00011227,2]
[351302849,1738510240963,-500.0,0.00011227,2]
[351302850,1738510240973,-765.91,0.00011227,2]
[351302851,1738510240983,-500.0,0.00011227,2]
[351302852,1738510240992,-504.48,0.00011227,2]
[351302853,1738510241001,-500.0,0.00011227,2]
[351302854,1738510241011,-500.0,0.00011227,2]
[351302855,1738510241020,-5511.34,0.00011227,2]
[351302856,1738510241030,-597.1,0.00011227,2]
[351302857,1738510241039,-6356.29,0.00011227,2]
[351302858,1738510241048,-1316.04,0.00011227,2]
[351302859,1738510241059,-500.0,0.00011227,2]
[351302860,1738510241072,-2359.59,0.00011227,2]
[351302861,1738510241082,-500.0,0.00011227,2]
[351302862,1738510241093,-1273.85,0.00011227,2]
[351302863,1738510241104,-721.96,0.00011227,2]
[351302864,1738510241117,-3564.92,0.00011227,2]
[351302865,1738510241127,-500.0,0.00011227,2]
[351302866,1738510241136,-4065.49,0.00011227,2]
[351302867,1738510241147,-1715.07,0.00011227,2]
[351302868,1738510241156,-1170.67,0.00011227,2]
[351302869,1738510241165,-1313.72,0.00011227,2]
[351302870,1738510241175,-955.35,0.00011227,2]
[351302871,1738510241185,-1706.27,0.00011227,2]
[351302872,1738510241194,-822.83,0.00011227,2]
[351302873,1738510241204,-607.06,0.00011227,2]
[351302874,1738510241213,-500.0,0.00011227,2]
[351302875,1738510241222,-3729.61,0.00011227,2]
[351302876,1738510241232,-1246.9,0.00011227,2]
[351302877,1738510241241,-500.0,0.00011227,2]
[351302878,1738510241250,-655.12,0.00011227,2]
[351302879,1738510241259,-4100.81,0.00011227,2]
[351302880,1738510241268,-500.0,0.00011227,2]
[351302881,1738510241277,-500.0,0.00011227,2]
[351302882,1738510241286,-592.71501318,0.00011227,2]
[351302883,1738510241295,-500.0,0.00011227,2]
[351302884,1738510241305,-1742.51,0.00011227,2]
[351302885,1738510241315,-834.16,0.00011227,2]
[351302886,1738510241324,-1402.83,0.00011227,2]
[351302887,1738510241334,-660.11,0.00011227,2]
[351302889,1738510241345,-924.02,0.00011227,2]
[351302890,1738510241355,-556.09,0.00011227,2]
[351302891,1738510241364,-1766.28,0.00011227,2]
[351302892,1738510241378,-500.0,0.00011227,2]
[351302893,1738510241388,-500.0,0.00011227,2]
[351302894,1738510241397,-1614.2,0.00011227,2]
[351302895,1738510241405,-716.07,0.00011227,2]
[351302896,1738510241414,-1557.23,0.00011227,2]
[351302897,1738510241423,-500.0,0.00011227,2]
[351302898,1738510241432,-500.0,0.00011227,2]
[351302899,1738510241441,-1018.9,0.00011227,2]
[351302900,1738510241451,-732.39,0.00011227,2]
[351302901,1738510241460,-500.0,0.00011228,2]
[351302902,1738510241470,-500.0,0.00011228,2]
[351302903,1738510241479,-500.0,0.00011228,2]
[351302904,1738510241489,-351.211748,0.00011228,2]
[351302905,1738510241498,-500.0,0.00011228,2]
[351302906,1738510241507,-475.08627873,0.00011228,2]
[351302907,1738510241517,-500.0,0.00011228,2]
[351302908,1738510241526,-500.0,0.00011228,2]
[351302909,1738510241536,-500.0,0.00011228,2]
[351302910,1738510241546,-563.53888645,0.00011228,2]
[351302911,1738510241556,-500.0,0.00011228,2]
[351302912,1738510241565,-500.0,0.00011228,2]
[351302913,1738510241575,-500.0,0.00011228,2]
[351302914,1738510241585,-500.0,0.00011228,2]
[351302915,1738510241596,-500.0,0.00011228,2]
[351302916,1738510241606,-500.0,0.00011228,2]
[351302917,1738510241615,-500.0,0.00011228,2]
[351302918,1738510241625,-503.0549216,0.00011228,2]
[351302919,1738510241634,-500.0,0.00011228,2]
[351302920,1738510241643,-500.0,0.00011228,2]
[351302921,1738510241652,-500.0,0.00011228,2]
[351302922,1738510241662,-500.0,0.00011228,2]
[351302923,1738510241671,-500.0,0.00011228,2]
[351302924,1738510241681,-500.0,0.00011228,2]
[351302925,1738510241690,-500.0,0.00011228,2]
[351302926,1738510241699,-500.0,0.00011228,2]
[351302927,1738510241709,-500.0,0.00011228,2]
[351302928,1738510241718,-500.0,0.00011228,2]
[351302929,1738510241728,-500.0,0.00011228,2]
[351302930,1738510241738,-277.68082806,0.00011228,2]
[351302931,1738510241747,-544.91223267,0.00011228,2]
[351302932,1738510241757,-400.09398219,0.00011228,2]
[351302933,1738510241767,-500.0,0.00011228,2]
[351302934,1738510241776,-500.0,0.00011228,2]
[351302935,1738510241786,-500.0,0.00011228,2]
[351302936,1738510241796,-500.0,0.00011228,2]
[351302937,1738510241806,-500.0,0.00011228,2]
[351302938,1738510241815,-500.0,0.00011228,2]
[351302939,1738510241825,-500.0,0.00011228,2]
[351302940,1738510241834,-500.0,0.00011228,2]
[351302941,1738510241845,-500.0,0.00011228,2]
[351302942,1738510241854,-272.61150231,0.00011228,2]
[351302943,1738510241864,-500.0,0.00011228,2]
[351302944,1738510241874,-500.0,0.00011228,2]
[351302945,1738510241884,-500.0,0.00011228,2]
[351302946,1738510241893,-500.0,0.00011228,2]
[351302947,1738510241902,-500.0,0.00011228,2]
[351302948,1738510241911,-500.0,0.00011228,2]
[351302949,1738510241921,-500.0,0.00011228,2]
[351302950,1738510241930,-500.0,0.00011228,2]
[351302951,1738510241939,-500.0,0.00011228,2]
[351302952,1738510241949,-500.0,0.00011228,2]
[351302953,1738510241958,-500.0,0.00011228,2]
[351302954,1738510241968,-500.0,0.00011228,2]
[351302955,1738510241977,-500.0,0.00011228,2]
[351302956,1738510241986,-505.72045698,0.00011228,2]
[351302957,1738510241996,-500.0,0.00011228,2]
[351302958,1738510242005,-500.0,0.00011228,2]
[351302959,1738510242015,-500.0,0.00011228,2]
[351302960,1738510242024,-500.0,0.00011228,2]
[351302961,1738510242033,-500.0,0.00011228,2]
[351302962,1738510242042,-500.0,0.00011228,2]
[351302963,1738510242051,-500.0,0.00011228,2]
[351302964,1738510242060,-500.0,0.00011228,2]
[351302965,1738510242069,-463.17957537,0.00011228,2]
[351302966,1738510242079,-500.0,0.00011228,2]
[351302967,1738510242088,-500.0,0.00011228,2]
[351302968,1738510242097,-500.0,0.00011228,2]
[351302969,1738510242108,-500.0,0.00011228,2]
[351302970,1738510242127,-516.41956603,0.00011228,2]
[351302971,1738510242146,-500.0,0.00011228,2]
[351302972,1738510242165,-500.0,0.00011228,2]
[351302973,1738510242175,-500.0,0.00011228,2]
[351302974,1738510242184,-500.0,0.00011228,2]
[351302975,1738510242194,-500.0,0.00011228,2]
[351302976,1738510242203,-500.0,0.00011228,2]
[351302977,1738510242212,-500.0,0.00011228,2]
[351302978,1738510242222,-500.0,0.00011228,2]
[351302979,1738510242231,-500.0,0.00011228,2]
[351302980,1738510242240,-500.0,0.00011228,2]
[351302981,1738510242250,-500.0,0.00011228,2]
[351302982,1738510242259,-500.0,0.00011228,2]
[351302983,1738510242268,-500.0,0.00011228,2]
[351302984,1738510242278,-204.84046547,0.00011228,2]
[351302985,1738510242287,-258.85264725,0.00011228,2]
[351302986,1738510242297,-500.0,0.00011228,2]
[351302987,1738510242306,-500.0,0.00011228,2]
[351302988,1738510242316,-500.0,0.00011228,2]
[351302989,1738510242325,-500.0,0.00011228,2]
[351302990,1738510242334,-500.0,0.00011228,2]
[351302991,1738510242345,-500.0,0.00011228,2]
[351302992,1738510242354,-500.0,0.00011228,2]
[351302993,1738510242363,-500.0,0.00011228,2]
[351302994,1738510242372,-500.0,0.00011228,2]
[351302995,1738510242382,-500.0,0.00011228,2]
[351302996,1738510242391,-500.0,0.00011228,2]
[351302997,1738510242400,-500.0,0.00011228,2]
[351302998,1738510242410,-500.0,0.00011228,2]
[351302999,1738510242419,-500.0,0.00011228,2]
[351303000,1738510242429,-500.0,0.00011228,2]
[351303001,1738510242439,-500.0,0.00011228,2]
[351303002,1738510242449,-500.0,0.00011228,2]
[351303003,1738510242458,-500.0,0.00011228,2]
[351303004,1738510242468,-654.03,0.00011228,2]
[351303005,1738510242478,-500.0,0.00011228,2]
[351303006,1738510242488,-1090.95,0.00011228,2]
[351303007,1738510242498,-500.0,0.00011228,2]
[351303008,1738510242508,-1124.91,0.00011228,2]
[351303009,1738510242517,-1284.23,0.00011228,2]
[351303010,1738510242526,-1124.94,0.00011228,2]
[351303011,1738510242536,-761.48,0.00011228,2]
[351303012,1738510242547,-500.0,0.00011228,2]
[351303013,1738510242556,-570.62,0.00011228,2]
[351303014,1738510242566,-500.0,0.00011228,2]
[351303015,1738510242576,-1544.05,0.00011228,2]
[351303016,1738510242585,-754.34,0.00011228,2]
[351303017,1738510242597,-1351.82,0.00011228,2]
[351303018,1738510242607,-500.0,0.00011228,2]
[351303019,1738510242616,-1435.45,0.00011228,2]
[351303020,1738510242625,-521.13,0.00011228,2]
[351303021,1738510242635,-500.0,0.00011228,2]
[351303023,1738510242644,-734.61,0.00011228,2]
[351303025,1738510242654,-500.0,0.00011228,2]